bitfinex-derivatives/quotes_BNBF0:USTF0_20250710
["timestamp","ask_amount","ask_price","bid_price","bid_amount"]
[1752116670008,0.25923719,671.46,670.97,1.5201043]
[1752116670207,0.25923719,671.46,670.98,1.5201043]
[1752116670408,0.25923719,671.46,670.89,2.303]
[1752116670409,0.25923719,671.46,670.99,1.5201043]
[1752116670612,0.25923719,671.46,671.0,1.5201043]
[1752116670810,0.25923719,671.46,671.01,1.5201043]
[1752116671008,0.25923719,671.46,670.89,2.303]
[1752116671009,0.25923719,671.46,671.02,1.5201043]
[1752116671308,0.25923719,671.46,671.03,1.5201043]
[1752116671507,0.25923719,671.46,671.04,1.5201043]
[1752116671708,0.25923719,671.46,671.05,1.5201043]
[1752116672012,0.25923719,671.46,671.06,1.5201043]
[1752116672213,0.25923719,671.46,671.07,1.5201043]
[1752116672510,0.25923719,671.46,670.89,2.303]
[1752116672708,0.25923719,671.46,670.9,1.5199149]
[1752116672908,0.25923719,671.46,670.91,1.5199149]
[1752116673212,0.25923719,671.46,670.92,1.5199149]
[1752116673413,0.25923719,671.46,670.93,1.5199149]
[1752116673613,0.25923719,671.46,670.94,1.5199149]
[1752116673815,0.25923719,671.46,670.95,1.5199149]
[1752116674113,0.25923719,671.46,670.96,1.5199149]
[1752116674309,0.25923719,671.46,670.97,1.5199149]
[1752116674516,0.25923719,671.46,670.98,1.5199149]
[1752116674714,0.25923719,671.46,670.99,1.5199149]
[1752116674913,0.25923719,671.46,671.0,1.5199149]
[1752116675112,0.25923719,671.46,671.01,1.5199149]
[1752116675311,0.25923719,671.46,671.02,1.5199149]
[1752116675513,0.25923719,671.46,671.03,1.5199149]
[1752116675713,0.25923719,671.46,671.04,1.5199149]
[1752116675913,0.25923719,671.46,671.05,1.5199149]
[1752116676113,0.25923719,671.46,671.06,1.5199149]
[1752116676317,0.25923719,671.46,671.07,1.5199149]
[1752116676520,0.25923719,671.46,670.89,2.303]
[1752116676819,0.25923719,671.46,670.9,1.5200493]
[1752116677113,0.25923719,671.46,670.91,1.5200493]
[1752116677318,0.25923719,671.46,670.92,1.5200493]
[1752116677517,0.25923719,671.46,670.93,1.5200493]
[1752116677716,0.25923719,671.46,670.94,1.5200493]
[1752116677918,0.25923719,671.46,670.95,1.5200493]
[1752116678118,0.25923719,671.46,670.96,1.5200493]
[1752116678416,0.25923719,671.46,670.97,1.5200493]
[1752116678615,0.25923719,671.46,670.98,1.5200493]
[1752116678818,0.25923719,671.46,670.99,1.5200493]
[1752116679016,0.25923719,671.46,671.0,1.5200493]
[1752116679215,0.25923719,671.46,671.01,1.5200493]
[1752116679419,0.25923719,671.46,671.02,1.5200493]
[1752116679619,0.25923719,671.46,671.03,1.5200493]
[1752116679815,0.25923719,671.46,671.04,1.5200493]
[1752116680017,0.25923719,671.46,671.05,1.5200493]
[1752116680219,0.25923719,671.46,671.06,1.5200493]
[1752116680417,0.25923719,671.46,671.07,1.5200493]
[1752116680720,0.25923719,671.46,670.84,1.6640823]
[1752116680916,0.25923719,671.46,670.85,1.5207649]
[1752116681115,0.25923719,671.46,670.86,1.5207649]
[1752116681316,0.25923719,671.46,670.87,1.5207649]
[1752116681620,0.25923719,671.46,670.88,1.5207649]
[1752116681621,3.60715799,671.46,670.88,1.5207649]
[1752116681916,3.60715799,671.46,670.89,1.5207649]
[1752116682121,3.60715799,671.46,670.9,1.5207649]
[1752116682317,3.60715799,671.46,670.91,1.5207649]
[1752116682523,3.60715799,671.46,670.92,1.5207649]
[1752116682716,3.60715799,671.46,670.93,1.5207649]
[1752116682917,3.60715799,671.46,670.94,1.5207649]
[1752116683216,3.60715799,671.46,670.95,1.5207649]
[1752116683422,3.3479208,671.45,670.96,1.5207649]
[1752116683618,3.3479208,671.45,670.97,1.5207649]
[1752116683922,3.3479208,671.45,670.98,1.5207649]
[1752116684121,3.3479208,671.45,670.99,1.5207649]
[1752116684319,3.3479208,671.45,671.0,1.5207649]
[1752116684519,3.3479208,671.45,671.01,1.5207649]
[1752116684718,3.3479208,671.45,671.02,1.5207649]
[1752116685025,0.25923719,671.46,671.03,1.5207649]
[1752116685318,0.25923719,671.46,671.04,1.5207649]
[1752116685523,0.25923719,671.46,671.05,1.5207649]
[1752116685722,0.25923719,671.46,671.06,1.5207649]
[1752116685924,0.25923719,671.46,671.07,1.5207649]
[1752116686124,0.25923719,671.46,670.95,2.009]
[1752116686323,0.25923719,671.46,670.96,1.5207437]
[1752116686524,0.25923719,671.46,670.97,1.5207437]
[1752116686824,0.25923719,671.46,670.98,1.5207437]
[1752116687026,0.25923719,671.46,670.99,1.5207437]
[1752116687224,0.25923719,671.46,671.0,1.5207437]
[1752116687422,0.25923719,671.46,671.01,1.5207437]
[1752116687722,0.25923719,671.46,671.02,1.5207437]
[1752116688021,0.25923719,671.46,671.03,1.5207437]
[1752116688226,0.25923719,671.46,671.04,1.5207437]
[1752116688427,0.25923719,671.46,671.05,1.5207437]
[1752116688631,0.25923719,671.46,671.06,1.5207437]
[1752116688827,0.25923719,671.46,671.07,1.5207437]
[1752116689128,0.25923719,671.46,670.95,2.009]
[1752116689327,3.3479208,671.86,670.96,1.5207336]
[1752116689629,0.25919567,671.62,670.97,1.5207336]
[1752116689825,0.25919567,671.62,670.98,1.5207336]
[1752116690030,0.25919567,671.62,670.99,1.5207336]
[1752116690229,0.25919567,671.62,671.0,1.5207336]
[1752116690425,0.25919567,671.62,671.01,1.5207336]
[1752116690631,0.25919567,671.62,671.02,1.5207336]
[1752116690827,0.25919567,671.62,671.03,1.5207336]
[1752116691026,0.25919567,671.62,671.04,1.5207336]
[1752116691231,3.3479208,671.81,671.05,1.5207336]
[1752116691527,0.25914935,671.73,671.06,1.5207336]
[1752116691731,0.25914935,671.73,671.07,1.5207336]
[1752116692032,0.25914935,671.73,671.08,1.5207336]
[1752116692330,0.25914935,671.73,671.09,1.5207336]
[1752116692530,0.25914935,671.73,670.95,2.009]
[1752116692531,0.25914935,671.73,671.1,1.5207336]
[1752116692725,0.25914935,671.73,671.11,1.5207336]
[1752116692929,0.25914935,671.73,671.12,1.5207336]
[1752116693228,0.25914935,671.73,671.13,1.5207336]
[1752116693427,0.25914935,671.73,671.14,1.5207336]
[1752116693726,0.25914935,671.73,671.15,1.5207336]
[1752116693930,0.25914935,671.73,670.95,2.009]
[1752116693931,0.25914935,671.73,671.16,1.5207336]
[1752116694131,0.25914935,671.73,671.17,1.5207336]
[1752116694431,0.25914935,671.73,670.95,2.009]
[1752116694627,0.25914935,671.73,670.96,1.5153516]
[1752116694826,0.25914935,671.73,670.97,1.5153516]
[1752116695027,0.25914935,671.73,670.98,1.5153516]
[1752116695228,0.25914935,671.73,670.95,2.009]
[1752116695229,0.25914935,671.73,670.99,1.5153516]
[1752116695424,0.25914935,671.73,671.0,1.5153516]
[1752116695632,0.25914935,671.73,671.01,1.5153516]
[1752116695831,0.25914935,671.73,671.02,1.5153516]
[1752116696033,0.25914935,671.73,671.03,1.5153516]
[1752116696232,0.25914935,671.73,671.04,1.5153516]
[1752116696430,0.25914935,671.73,671.05,1.5153516]
[1752116696631,0.25914935,671.73,671.06,1.5153516]
[1752116696830,0.25914935,671.73,671.07,1.5153516]
[1752116697031,0.25914935,671.73,671.08,1.5153516]
[1752116697229,0.25914935,671.73,671.09,1.5153516]
[1752116697434,0.25914935,671.73,671.1,1.5153516]
[1752116697634,0.25914935,671.73,671.11,1.5153516]
[1752116697831,0.25914935,671.73,671.12,1.5153516]
[1752116698034,0.25914935,671.73,671.13,1.5153516]
[1752116698335,0.25914935,671.73,671.14,1.5153516]
[1752116698630,0.25914935,671.73,671.15,1.5153516]
[1752116698931,0.25914935,671.73,671.16,1.5153516]
[1752116699130,0.25914935,671.73,671.17,1.5153516]
[1752116699329,0.25914935,671.73,671.18,1.5153516]
[1752116699634,0.25914935,671.73,671.19,1.5153516]
[1752116699831,0.25914935,671.73,671.2,1.5153516]
[1752116700032,0.25914935,671.73,670.95,2.009]
[1752116700230,0.25914935,671.73,670.96,1.5133121]
[1752116700437,0.25914935,671.73,670.97,1.5133121]
[1752116700735,0.25914935,671.73,670.98,1.5133121]
[1752116701031,0.25914935,671.73,670.99,1.5133121]
[1752116701231,0.25914935,671.73,671.0,1.5133121]
[1752116701429,0.25914935,671.73,671.01,1.5133121]
[1752116701635,0.25914935,671.73,671.02,1.5133121]
[1752116701833,0.25914935,671.73,671.03,1.5133121]
[1752116702034,0.25914935,671.73,671.04,1.5133121]
[1752116702232,0.25914935,671.73,671.05,1.5133121]
[1752116702535,0.25914935,671.73,671.06,1.5133121]
[1752116702835,0.25914935,671.73,671.07,1.5133121]
[1752116703036,0.25914935,671.73,671.08,1.5133121]
[1752116703235,0.25914935,671.73,671.09,1.5133121]
[1752116703435,0.25914935,671.73,671.1,1.5133121]
[1752116703632,0.25914935,671.73,671.11,1.5133121]
[1752116703834,0.25914935,671.73,671.12,1.5133121]
[1752116704033,0.25914935,671.73,671.13,1.5133121]
[1752116704236,0.25914935,671.73,671.14,1.5133121]
[1752116704435,0.25914935,671.73,671.15,1.5133121]
[1752116704633,0.25914935,671.73,671.16,1.5133121]
[1752116704835,0.25914935,671.73,671.17,1.5133121]
[1752116705033,0.25914935,671.73,671.18,1.5133121]
[1752116705333,0.25914935,671.73,671.19,1.5133121]
[1752116705539,0.25914935,671.73,670.95,2.009]
[1752116705735,0.25914935,671.73,670.96,1.5121611]
[1752116705933,0.25914935,671.73,670.97,1.5121611]
[1752116706136,0.25914935,671.73,670.98,1.5121611]
[1752116706336,0.25914935,671.73,670.99,1.5121611]
[1752116706540,0.25914935,671.73,671.0,1.5121611]
[1752116706739,0.25914935,671.73,671.01,1.5121611]
[1752116706939,0.25914935,671.73,671.02,1.5121611]
[1752116707140,0.25914935,671.73,671.03,1.5121611]
[1752116707438,0.25914935,671.73,671.04,1.5121611]
[1752116707639,0.25914935,671.73,671.05,1.5121611]
[1752116707836,0.25914935,671.73,671.06,1.5121611]
[1752116708035,0.25914935,671.73,671.07,1.5121611]
[1752116708237,0.25914935,671.73,671.08,1.5121611]
[1752116708536,0.25914935,671.73,671.09,1.5121611]
[1752116708736,0.25914935,671.73,671.1,1.5121611]
[1752116708940,0.25914935,671.73,671.11,1.5121611]
[1752116709140,0.25914935,671.73,671.12,1.5121611]
[1752116709338,0.25914935,671.73,671.13,1.5121611]
[1752116709540,0.25914935,671.73,671.14,1.5121611]
[1752116709736,0.25914935,671.73,671.15,1.5121611]
[1752116709939,0.25914935,671.73,671.16,1.5121611]
[1752116710139,0.25914935,671.73,671.17,1.5121611]
[1752116710340,0.25914935,671.73,671.18,1.5121611]
[1752116710537,0.25914935,671.73,671.19,1.5121611]
[1752116710739,0.25914935,671.73,670.95,3.6724511]
[1752116711041,0.25914935,671.73,670.96,1.5114762]
[1752116711240,0.25914935,671.73,670.97,1.5114762]
[1752116711441,0.25914935,671.73,670.98,1.5114762]
[1752116711638,0.25914935,671.73,670.99,1.5114762]
[1752116711839,0.25914935,671.73,671.0,1.5114762]
[1752116712038,0.25914935,671.73,671.01,1.5114762]
[1752116712242,0.25914935,671.73,671.02,1.5114762]
[1752116712442,0.25914935,671.73,671.03,1.5114762]
[1752116712642,0.25914935,671.73,671.04,1.5114762]
[1752116712841,0.25914935,671.73,671.05,1.5114762]
[1752116713043,0.25914935,671.73,671.06,1.5114762]
[1752116713240,0.25914935,671.73,671.07,1.5114762]
[1752116713440,0.25914935,671.73,671.08,1.5114762]
[1752116713644,0.25914935,671.73,671.09,1.5114762]
[1752116713844,0.25914935,671.73,671.1,1.5114762]
[1752116714145,0.25914935,671.73,671.11,1.5114762]
[1752116714444,0.25914935,671.73,671.12,1.5114762]
[1752116714643,0.25914935,671.73,671.13,1.5114762]
[1752116714841,0.25914935,671.73,671.14,1.5114762]
[1752116715040,0.25914935,671.73,671.15,1.5114762]
[1752116715242,0.25914935,671.73,671.16,1.5114762]
[1752116715441,0.25914935,671.73,671.17,1.5114762]
[1752116715744,0.25914935,671.73,671.18,1.5114762]
[1752116715945,0.25914935,671.73,671.19,1.5114762]
[1752116716245,0.25914935,671.73,670.95,2.009]
[1752116716545,0.25914935,671.73,670.96,1.5110497]
[1752116716745,0.25914935,671.73,670.97,1.5110497]
[1752116717042,0.25914935,671.73,670.98,1.5110497]
[1752116717246,0.25914935,671.73,670.99,1.5110497]
[1752116717444,0.25914935,671.73,671.0,1.5110497]
[1752116717641,0.25914935,671.73,671.01,1.5110497]
[1752116717941,0.25914935,671.73,671.02,1.5110497]
[1752116718143,0.25914935,671.73,671.03,1.5110497]
[1752116718342,0.25914935,671.73,671.04,1.5110497]
[1752116718544,0.25914935,671.73,671.05,1.5110497]
[1752116718743,0.25914935,671.73,671.06,1.5110497]
[1752116719045,0.25914935,671.73,671.07,1.5110497]
[1752116719248,0.25914935,671.73,671.08,1.5110497]
[1752116719443,0.25914935,671.73,671.09,1.5110497]
[1752116719641,0.25914935,671.73,671.1,1.5110497]
[1752116719845,0.25914935,671.73,671.11,1.5110497]
[1752116720045,0.25914935,671.73,671.12,1.5110497]
[1752116720246,0.25914935,671.73,671.13,1.5110497]
[1752116720444,0.25914935,671.73,671.14,1.5110497]
[1752116720642,0.25914935,671.73,671.15,1.5110497]
[1752116720842,0.25914935,671.73,671.16,1.5110497]
[1752116721045,0.25914935,671.73,671.17,1.5110497]
[1752116721245,0.25914935,671.73,671.18,1.5110497]
[1752116721442,0.25914935,671.73,671.19,1.5110497]
[1752116721643,0.25914935,671.73,670.95,2.009]
[1752116721847,0.25914935,671.73,670.96,1.5113329]
[1752116722046,0.25914935,671.73,670.97,1.5113329]
[1752116722243,0.25914935,671.73,670.98,1.5113329]
[1752116722547,0.25914935,671.73,670.99,1.5113329]
[1752116722744,0.25914935,671.73,671.0,1.5113329]
[1752116722942,0.25914935,671.73,671.01,1.5113329]
[1752116723143,0.25914935,671.73,670.95,2.009]
[1752116723144,0.25914935,671.73,671.02,1.5113329]
[1752116723442,0.25914935,671.73,671.03,1.5113329]
[1752116723646,0.25914935,671.73,671.04,1.5113329]
[1752116723945,0.25914935,671.73,671.05,1.5113329]
[1752116724144,0.25914935,671.73,671.06,1.5113329]
[1752116724342,0.25914935,671.73,671.07,1.5113329]
[1752116724544,0.25914935,671.73,671.08,1.5113329]
[1752116724843,0.25914935,671.73,671.09,1.5113329]
[1752116725145,0.25914935,671.73,671.1,1.5113329]
[1752116725443,0.25914935,671.73,671.11,1.5113329]
[1752116725648,0.25914935,671.73,671.12,1.5113329]
[1752116725848,0.25914935,671.73,671.13,1.5113329]
[1752116726046,0.25914935,671.73,671.14,1.5113329]
[1752116726250,0.25914935,671.73,671.15,1.5113329]
[1752116726448,0.25914935,671.73,671.16,1.5113329]
[1752116726651,0.25914935,671.73,671.17,1.5113329]
[1752116726852,0.25914935,671.73,671.18,1.5113329]
[1752116727054,0.25914935,671.73,671.19,1.5113329]
[1752116727254,0.25914935,671.73,671.2,1.5113329]
[1752116727550,0.25914935,671.73,670.85,1.6634511]
[1752116727849,0.25914935,671.73,670.86,1.5122393]
[1752116728049,0.25914935,671.73,670.87,1.5122393]
[1752116728354,0.25914935,671.73,670.88,1.5122393]
[1752116728653,0.25914935,671.73,670.89,1.5122393]
[1752116728854,0.25914935,671.73,670.9,1.5122393]
[1752116729053,0.25914935,671.73,670.91,1.5122393]
[1752116729255,0.25914935,671.73,670.92,1.5122393]
[1752116729555,0.25914935,671.73,670.93,1.5122393]
[1752116729755,0.25914935,671.73,670.94,1.5122393]
[1752116730050,0.25914935,671.73,670.95,1.5122393]
[1752116730251,0.25914935,671.73,670.96,1.5122393]
[1752116730450,0.25914935,671.73,670.97,1.5122393]
[1752116730650,0.25914935,671.73,670.98,1.5122393]
[1752116730952,0.25914935,671.73,670.87,3.7894511]
[1752116730953,0.25914935,671.73,670.99,1.5122393]
[1752116731157,0.25914935,671.73,671.0,1.5122393]
[1752116731356,0.25914935,671.73,671.01,1.5122393]
[1752116731556,0.25914935,671.73,671.02,1.5122393]
[1752116731757,0.25914935,671.73,671.03,1.5122393]
[1752116732057,0.25914935,671.73,671.04,1.5122393]
[1752116732357,0.25914935,671.73,671.05,1.5122393]
[1752116732657,0.25914935,671.73,671.06,1.5122393]
[1752116732856,0.25914935,671.73,671.07,1.5122393]
[1752116733054,0.25914935,671.73,671.08,1.5122393]
[1752116733257,0.25914935,671.73,671.09,1.5122393]
[1752116733454,0.25914935,671.73,671.1,1.5122393]
[1752116733657,0.25914935,671.73,671.11,1.5122393]
[1752116733855,0.25914935,671.73,671.12,1.5122393]
[1752116734055,0.25914935,671.73,671.13,1.5122393]
[1752116734259,0.25914935,671.73,671.14,1.5122393]
[1752116734558,0.25914935,671.73,671.15,1.5122393]
[1752116734758,0.25914935,671.73,671.16,1.5122393]
[1752116734958,0.25914935,671.73,671.17,1.5122393]
[1752116735159,0.25914935,671.73,671.18,1.5122393]
[1752116735459,0.25914935,671.73,671.19,1.5122393]
[1752116735659,0.25914935,671.73,671.2,1.5122393]
[1752116735958,0.25914935,671.73,670.87,2.126]
[1752116736156,0.25914935,671.73,670.88,1.5131595]
[1752116736354,0.25914935,671.73,670.89,1.5131595]
[1752116736558,0.25914935,671.73,670.9,1.5131595]
[1752116736757,0.25914935,671.73,670.91,1.5131595]
[1752116736957,0.25914935,671.73,670.92,1.5131595]
[1752116737156,0.25914935,671.73,670.93,1.5131595]
[1752116737360,0.25914935,671.73,670.94,1.5131595]
[1752116737560,0.25914935,671.73,670.95,1.5131595]
[1752116737757,0.25914935,671.73,670.96,1.5131595]
[1752116737961,0.25914935,671.73,670.97,1.5131595]
[1752116738261,0.25914935,671.73,670.98,1.5131595]
[1752116738461,0.25914935,671.73,670.99,1.5131595]
[1752116738758,0.25914935,671.73,671.0,1.5131595]
[1752116738966,0.25914935,671.73,671.01,1.5131595]
[1752116739159,0.25914935,671.73,671.02,1.5131595]
[1752116739457,0.25914935,671.73,671.03,1.5131595]
[1752116739662,0.25914935,671.73,671.04,1.5131595]
[1752116739858,0.25914935,671.73,671.05,1.5131595]
[1752116740062,0.25914935,671.73,671.06,1.5131595]
[1752116740260,0.25914935,671.73,671.07,1.5131595]
[1752116740460,0.25914935,671.73,671.08,1.5131595]
[1752116740660,0.25914935,671.73,671.09,1.5131595]
[1752116740857,0.25914935,671.73,671.1,1.5131595]
[1752116741060,0.25914935,671.73,671.11,1.5131595]
[1752116741264,0.25914935,671.73,671.12,1.5131595]
[1752116741469,0.25914935,671.73,671.13,1.5131595]
[1752116741664,0.25914935,671.73,671.14,1.5131595]
[1752116741959,0.25914935,671.73,671.15,1.5131595]
[1752116742164,0.25914935,671.73,671.16,1.5131595]
[1752116742360,0.25914935,671.73,671.17,1.5131595]
[1752116742565,0.25914935,671.73,671.18,1.5131595]
[1752116742764,0.25914935,671.73,671.19,1.5131595]
[1752116742961,0.25914935,671.73,671.2,1.5131595]
[1752116743165,0.25914935,671.73,671.21,1.5131595]
[1752116743363,0.25914935,671.73,671.22,1.5131595]
[1752116743565,0.25914935,671.73,671.23,1.5131595]
[1752116743766,0.25914935,671.73,671.24,1.5131595]
[1752116743966,0.25914935,671.73,670.87,2.126]
[1752116744168,0.25914935,671.73,670.88,1.5144208]
[1752116744369,0.25914935,671.73,670.89,1.5144208]
[1752116744569,0.25914935,671.73,670.9,1.5144208]
[1752116744770,0.25914935,671.73,670.91,1.5144208]
[1752116744971,0.25914935,671.73,670.92,1.5144208]
[1752116745270,0.25914935,671.73,670.93,1.5144208]
[1752116745470,0.25914935,671.73,670.94,1.5144208]
[1752116745670,0.25914935,671.73,670.95,1.5144208]
[1752116745870,0.25914935,671.73,670.96,1.5144208]
[1752116746067,0.25914935,671.73,670.97,1.5144208]
[1752116746368,0.25914935,671.73,670.98,1.5144208]
[1752116746568,0.25914935,671.73,670.99,1.5144208]
[1752116746868,0.25914935,671.73,671.0,1.5144208]
[1752116747067,0.25914935,671.73,671.01,1.5144208]
[1752116747271,0.25914935,671.73,671.02,1.5144208]
[1752116747473,0.25914935,671.73,671.03,1.5144208]
[1752116747673,0.25914935,671.73,671.04,1.5144208]
[1752116747873,0.25914935,671.73,671.05,1.5144208]
[1752116748075,0.25914935,671.73,671.06,1.5144208]
[1752116748269,0.25914935,671.73,671.07,1.5144208]
[1752116748474,0.25914935,671.73,671.08,1.5144208]
[1752116748674,0.25914935,671.73,671.09,1.5144208]
[1752116748973,0.25914935,671.73,671.1,1.5144208]
[1752116749176,0.25914935,671.73,671.11,1.5144208]
[1752116749377,0.25914935,671.73,671.12,1.5144208]
[1752116749576,0.25914935,671.73,671.13,1.5144208]
[1752116749879,0.25914935,671.73,671.14,1.5144208]
[1752116750073,0.25914935,671.73,671.15,1.5144208]
[1752116750275,0.25914935,671.73,671.16,1.5144208]
[1752116750474,0.25914935,671.73,671.17,1.5144208]
[1752116750679,0.25914935,671.73,671.18,1.5144208]
[1752116750878,0.25914935,671.73,671.19,1.5144208]
[1752116751080,0.25914935,671.73,671.2,1.5144208]
[1752116751277,0.25914935,671.73,671.21,1.5144208]
[1752116751476,0.25914935,671.73,671.22,1.5144208]
[1752116751677,0.25914935,671.73,671.23,1.5144208]
[1752116751879,0.25914935,671.73,671.24,1.5144208]
[1752116752177,0.25914935,671.73,671.25,1.5144208]
[1752116752380,0.25914935,671.73,671.26,1.5144208]
[1752116752576,0.25914935,671.73,671.27,1.5144208]
[1752116752779,0.25914935,671.73,671.28,1.5144208]
[1752116753079,0.25914935,671.73,671.29,1.5144208]
[1752116753275,0.25914935,671.73,671.3,1.5144208]
[1752116753479,0.25914935,671.73,671.31,1.5144208]
[1752116753676,0.25914935,671.73,671.32,1.5144208]
[1752116753876,0.25914935,671.73,671.33,1.5144208]
[1752116754077,0.25914935,671.73,671.34,1.5144208]
[1752116754378,0.25914935,671.73,671.35,1.5144208]
[1752116754580,0.25914935,671.73,671.36,1.5144208]
[1752116754778,0.25914935,671.73,671.02,1.6634511]
[1752116754981,0.25914935,671.73,670.87,2.126]
[1752116754982,0.25914935,671.73,671.03,1.5184088]
[1752116755182,0.25914935,671.73,671.04,1.5184088]
[1752116755382,0.25914935,671.73,671.05,1.5184088]
[1752116755678,0.25914935,671.73,671.06,1.5184088]
[1752116755877,0.25914935,671.73,671.07,1.5184088]
[1752116756083,0.25914935,671.73,671.08,1.5184088]
[1752116756377,0.25914935,671.73,671.09,1.5184088]
[1752116756581,0.25914935,671.73,671.1,1.5184088]
[1752116756881,0.25914935,671.73,671.11,1.5184088]
[1752116757082,0.25914935,671.73,671.12,1.5184088]
[1752116757282,0.25914935,671.73,671.13,1.5184088]
[1752116757579,0.25914935,671.73,671.14,1.5184088]
[1752116757881,0.25914935,671.73,671.15,1.5184088]
[1752116758080,0.25914935,671.73,671.16,1.5184088]
[1752116758284,0.25914935,671.73,671.17,1.5184088]
[1752116758483,0.25914935,671.73,671.18,1.5184088]
[1752116758779,0.25914935,671.73,671.19,1.5184088]
[1752116758983,0.25914935,671.73,671.2,1.5184088]
[1752116759181,0.25914935,671.73,671.21,1.5184088]
[1752116759484,0.25914935,671.73,671.22,1.5184088]
[1752116759680,0.25914935,671.73,671.23,1.5184088]
[1752116759881,0.25914935,671.73,670.98,1.6634511]
[1752116759882,0.25914935,671.73,671.24,1.5184088]
[1752116760080,0.25914935,671.73,671.25,1.5184088]
[1752116760286,0.25914935,671.73,671.26,1.5184088]
[1752116760484,0.25914935,671.73,671.27,1.5184088]
[1752116760685,0.25914935,671.73,671.28,1.5184088]
[1752116760884,0.25914935,671.73,671.29,1.5184088]
[1752116761180,0.25914935,671.73,671.3,1.5184088]
[1752116761383,0.25914935,671.73,671.31,1.5184088]
[1752116761584,0.25914935,671.73,671.32,1.5184088]
[1752116761782,0.25914935,671.73,671.33,1.5184088]
[1752116761987,0.25914935,671.73,671.34,1.5184088]
[1752116762186,0.25914935,671.73,671.35,1.5184088]
[1752116762388,0.25914935,671.73,670.98,1.6634511]
[1752116762585,0.25914935,671.73,670.99,1.518083]
[1752116762788,0.25914935,671.73,671.0,1.518083]
[1752116762988,0.25914935,671.73,671.01,1.518083]
[1752116763190,0.25914935,671.73,671.02,1.518083]
[1752116763391,0.25914935,671.73,671.03,1.518083]
[1752116763588,0.25914935,671.73,671.04,1.518083]
[1752116763887,0.25914935,671.73,671.05,1.518083]
[1752116764092,0.25914935,671.73,671.06,1.518083]
[1752116764290,0.25914935,671.73,671.07,1.518083]
[1752116764488,0.25914935,671.73,671.08,1.518083]
[1752116764687,0.25914935,671.73,671.09,1.518083]
[1752116764891,0.25914935,671.73,671.1,1.518083]
[1752116765092,0.25914935,671.73,671.11,1.518083]
[1752116765289,0.25914935,671.73,671.12,1.518083]
[1752116765588,0.25914935,671.73,671.13,1.518083]
[1752116765790,0.25914935,671.73,671.14,1.518083]
[1752116765994,0.25914935,671.73,671.15,1.518083]
[1752116766190,0.25914935,671.73,671.16,1.518083]
[1752116766488,0.25914935,671.73,671.17,1.518083]
[1752116766688,0.25914935,671.73,671.18,1.518083]
[1752116766888,0.25914935,671.73,671.19,1.518083]
[1752116767093,0.25914935,671.73,671.2,1.518083]
[1752116767392,0.25914935,671.73,671.21,1.518083]
[1752116767589,0.25914935,671.73,671.22,1.518083]
[1752116767793,0.25914935,671.73,671.23,1.518083]
[1752116767994,0.25914935,671.73,671.24,1.518083]
[1752116768293,0.25914935,671.73,671.25,1.518083]
[1752116768489,0.25914935,671.73,671.26,1.518083]
[1752116768691,0.25914935,671.73,671.27,1.518083]
[1752116768891,0.25914935,671.73,671.28,1.518083]
[1752116769093,0.25914935,671.73,671.29,1.518083]
[1752116769292,0.25914935,671.73,671.3,1.518083]
[1752116769492,0.25914935,671.73,671.31,1.518083]
[1752116769695,0.25914935,671.73,671.32,1.518083]
[1752116769891,0.25914935,671.73,671.33,1.518083]
[1752116770094,0.25914935,671.73,671.34,1.518083]
[1752116770297,0.25914935,671.73,671.35,1.518083]
[1752116770497,0.25914935,671.73,670.96,1.6634511]
[1752116770697,0.25914935,671.73,670.97,3.1815514]
[1752116770895,0.25914935,671.73,670.98,1.5181003]
[1752116771093,0.25914935,671.73,670.99,1.5181003]
[1752116771300,0.25914935,671.73,671.0,1.5181003]
[1752116771598,0.25914935,671.73,671.01,1.5181003]
[1752116771792,0.25914935,671.73,671.02,1.5181003]
[1752116771996,0.25914935,671.73,671.03,1.5181003]
[1752116772299,0.25914935,671.73,671.04,1.5181003]
[1752116772499,0.25914935,671.73,671.05,1.5181003]
[1752116772699,0.25914935,671.73,671.06,1.5181003]
[1752116772999,0.25914935,671.73,671.07,1.5181003]
[1752116773200,0.25914935,671.73,671.08,1.5181003]
[1752116773495,0.25914935,671.73,671.09,1.5181003]
[1752116773699,0.25914935,671.73,671.1,1.5181003]
[1752116773899,0.25914935,671.73,671.11,1.5181003]
[1752116774198,0.25914935,671.73,671.12,1.5181003]
[1752116774395,0.25914935,671.73,671.13,1.5181003]
[1752116774698,0.25914935,671.73,671.14,1.5181003]
[1752116774899,0.25914935,671.73,671.15,1.5181003]
[1752116775196,0.25914935,671.73,671.16,1.5181003]
[1752116775399,0.25914935,671.73,671.17,1.5181003]
[1752116775597,0.25914935,671.73,671.18,1.5181003]
[1752116775800,0.25914935,671.73,671.19,1.5181003]
[1752116775997,0.25914935,671.73,671.2,1.5181003]
[1752116776200,0.25914935,671.73,671.21,1.5181003]
[1752116776399,0.25914935,671.73,670.98,1.6634511]
[1752116776400,0.25914935,671.73,671.22,1.5181003]
[1752116776598,0.25914935,671.73,671.23,1.5181003]
[1752116776900,0.25914935,671.73,671.24,1.5181003]
[1752116777095,0.25914935,671.73,671.25,1.5181003]
[1752116777297,0.25914935,671.73,671.26,1.5181003]
[1752116777497,0.25914935,671.73,671.27,1.5181003]